[Event "Paracin Open 2022"]
[Site "Paracin"]
[Date "2022.07.16"]
[Round "9.5"]
[White "Djordjevic, Vuk"]
[Black "Gan-Erdene, Sugar"]
[Result "1/2-1/2"]
[ECO "D00"]
[WhiteElo "2382"]
[BlackElo "2428"]
[Annotator "ChessBase"]
[PlyCount "122"]
[EventDate "2022.07.08"]
[EventCountry "SRB"]
[SourceTitle "playchess.com"]
[Source "ChessBase"]
[SourceQuality "1"]
[TimeControl "5400+30"]

1. d4 {[%emt 0:05:40]} Nf6 {[%emt 0:00:06]} 2. Bg5 {[%emt 0:00:10]} d5 {[%emt 0:00:13]} 3. e3 {[%emt 0:02:03]} c5 {[%emt 0:00:28]} 4. Bxf6 {[%emt 0:00:54]} gxf6 {[%emt 0:00:13]} 5. dxc5 {[%emt 0:00:50]} Nc6 {[%emt 0:00:52]} 6. c3 {[%emt 0:01:04]} e5 {[%emt 0:04:06]} 7. b4 {[%emt 0:02:42]} a5 {[%emt 0:01:10]} 8. Bb5 {[%emt 0:01:45]} Rg8 {[%emt 0:07:52]} 9. Ne2 {[%emt 0:11:10]} axb4 {[%emt 0:42:37]} 10. cxb4 {[%emt 0:04:45]} Rg4 {[%emt 0:03:20]} 11. Nbc3 {[%emt 0:15:50]} Be6 {[%emt 0:00:50]} 12. a3 {[%emt 0:04:01]} Rxg2 {[%emt 0:01:47]} 13. Ng3 {[%emt 0:02:45]} d4 {[%emt 0:00:57]} 14. exd4 {[%emt 0:06:52]} exd4 {[%emt 0:00:17]} 15. Nce2 {[%emt 0:02:14]} Qd5 {[%emt 0:10:12]} 16. Qxd4 {[%emt 0:11:48]} Qxd4 {[%emt 0:16:32]} 17. Nxd4 {[%emt 0:00:10]} Bd5 {[%emt 0:00:04]} 18. Ndf5 {[%emt 0:05:23]} O-O-O {[%emt 0:00:42]} 19. Rd1 {[%emt 0:04:31]} Re8+ {[%emt 0:05:19]} 20. Kf1 {[%emt 0:00:50]} Rxg3 {[%emt 0:01:37]} 21. Nxg3 {[%emt 0:00:12]} Bxh1 {[%emt 0:00:11]} 22. Nxh1 {[%emt 0:00:06]} Kc7 {[%emt 0:00:07]} 23. Ng3 {[%emt 0:01:58]} Ra8 {[%emt 0:00:04]} 24. Rd3 {[%emt 0:01:33]} Ne5 {[%emt 0:00:08]} 25. Rb3 {[%emt 0:01:36]} Bh6 {[%emt 0:00:29]} 26. Nh5 {[%emt 0:04:20]} Bc1 {[%emt 0:01:00]} 27. a4 {[%emt 0:00:27]} f5 {[%emt 0:00:12]} 28. Nf6 {[%emt 0:00:30]} Rd8 {[%emt 0:00:06]} 29. Ne8+ {[%emt 0:01:16]} Kb8 {[%emt 0:00:16]} 30. Nd6 {[%emt 0:00:06]} Bf4 {[%emt 0:00:21]} 31. h3 {[%emt 0:01:22]} f6 {[%emt 0:01:14]} 32. Nxf5 {[%emt 0:02:37]} Rd1+ {[%emt 0:00:09]} 33. Kg2 {[%emt 0:00:01]} Rd2 {[%emt 0:00:39]} 34. Nd6 {[%emt 0:02:07]} Ng6 {[%emt 0:00:12]} 35. Nf5 {[%emt 0:00:19]} Be5 {[%emt 0:00:12]} 36. Ne3 {[%emt 0:03:52]} Nf4+ {[%emt 0:00:10]} 37. Kf3 {[%emt 0:00:15]} Nxh3 {[%emt 0:00:44]} 38. Ng4 {[%emt 0:00:07]} Bd4 {[%emt 0:01:42]} 39. Rd3 {[%emt 0:00:55]} Rxd3+ {[%emt 0:00:12]} 40. Bxd3 {[%emt 0:00:02]} Bc3 {[%emt 0:00:12]} 41. b5 {[%emt 0:01:10]} Bd4 {[%emt 0:00:06]} 42. c6 {[%emt 0:00:27]} bxc6 {[%emt 0:00:04]} 43. bxc6 {[%emt 0:00:21]} Kc7 {[%emt 0:00:08]} 44. Bb5 {[%emt 0:00:24]} Ng5+ {[%emt 0:00:37]} 45. Kf4 {[%emt 0:00:54]} Nh3+ {[%emt 0:01:06]} 46. Ke4 {[%emt 0:00:32]} Bxf2 {[%emt 0:03:01]} 47. Bf1 {[%emt 0:00:26]} Ng5+ {[%emt 0:00:39]} 48. Kd5 {[%emt 0:00:15]} Bb6 {[%emt 0:00:16]} 49. Nxf6 {[%emt 0:00:10]} Ba5 {[%emt 0:00:26]} 50. Ne8+ {[%emt 0:00:59]} Kd8 {[%emt 0:00:37]} 51. Nd6 {[%emt 0:00:01]} Kc7 {[%emt 0:00:44]} 52. Ne8+ {[%emt 0:01:09]} Kd8 {[%emt 0:00:10]} 53. Nd6 {[%emt 0:00:01]} Kc7 {[%emt 0:00:24]} 54. Nc4 {[%emt 0:00:59]} Be1 {[%emt 0:00:30]} 55. a5 {[%emt 0:00:13]} Nf7 {[%emt 0:00:29]} 56. a6 {[%emt 0:00:19]} Bf2 {[%emt 0:00:09]} 57. Bh3 {[%emt 0:00:46]} h5 {[%emt 0:00:19]} 58. Bd7 {[%emt 0:00:24]} h4 {[%emt 0:00:21]} 59. Be6 {[%emt 0:00:33]} Nd8 {[%emt 0:00:19]} 60. Bd7 {[%emt 0:00:29]} h3 {[%emt 0:00:21]} 61. Bxh3 {[%emt 0:00:45]} Nxc6 {[%emt 0:00:10]} 1/2-1/2

[Event "Paracin Open 2022"]
[Site "Paracin"]
[Date "2022.07.16"]
[Round "9.6"]
[White "Arjun Kalyan"]
[Black "Harikrishnan.A.Ra"]
[Result "1-0"]
[ECO "C54"]
[WhiteElo "2499"]
[BlackElo "2396"]
[Annotator "ChessBase"]
[PlyCount "99"]
[EventDate "2022.07.08"]
[EventCountry "SRB"]
[SourceTitle "playchess.com"]
[Source "ChessBase"]
[SourceQuality "1"]
[TimeControl "5400+30"]

1. e4 {[%emt 0:00:02]} e5 {[%emt 0:00:11]} 2. Nf3 {[%emt 0:00:05]} Nc6 {[%emt 0:00:04]} 3. Bc4 {[%emt 0:00:05]} Bc5 {[%emt 0:00:07]} 4. O-O {[%emt 0:00:05]} Nf6 {[%emt 0:00:06]} 5. d3 {[%emt 0:00:04]} O-O {[%emt 0:00:17]} 6. c3 {[%emt 0:00:09]} d5 {[%emt 0:00:43]} 7. exd5 {[%emt 0:00:07]} Nxd5 {[%emt 0:00:04]} 8. Re1 {[%emt 0:00:21]} Bg4 {[%emt 0:00:31]} 9. Nbd2 {[%emt 0:00:15]} Nb6 {[%emt 0:00:59]} 10. h3 {[%emt 0:00:06]} Bh5 {[%emt 0:00:42]} 11. b4 {[%emt 0:00:15]} Be7 {[%emt 0:05:09]} 12. Qe2 {[%emt 0:00:15]} Nxc4 {[%emt 0:03:08]} 13. Nxc4 {[%emt 0:00:03]} f6 {[%emt 0:01:16]} 14. b5 {[%emt 0:00:26]} Nb8 {[%emt 0:00:10]} 15. d4 {[%emt 0:00:05]} Qd5 {[%emt 0:07:44]} 16. Ne3 {[%emt 0:00:37]} Qe6 {[%emt 0:15:37]} 17. dxe5 {[%emt 0:00:29]} fxe5 {[%emt 0:00:58]} 18. Ng4 {[%emt 0:00:17]} Nd7 {[%emt 0:25:17]} 19. Nfxe5 {[%emt 0:01:08]} Nxe5 {[%emt 0:00:31]} 20. Qxe5 {[%emt 0:00:45]} Bxg4 {[%emt 0:00:09]} 21. Qxe6+ {[%emt 0:07:14]} Bxe6 {[%emt 0:00:17]} 22. Rxe6 {[%emt 0:00:08]} Bf6 {[%emt 0:00:38]} 23. Bb2 {[%emt 0:07:01]} Rfd8 {[%emt 0:05:28]} 24. Re2 {[%emt 0:13:25]} Rd3 {[%emt 0:02:45]} 25. c4 {[%emt 0:07:00]} Bxb2 {[%emt 0:06:20]} 26. Rxb2 {[%emt 0:00:48]} Rad8 {[%emt 0:08:21]} 27. Re1 {[%emt 0:01:08]} R8d4 {[%emt 0:03:27]} 28. Re8+ {[%emt 0:07:08]} Kf7 {[%emt 0:00:01]} 29. Rb8 {[%emt 0:00:11]} Rxc4 {[%emt 0:03:20]} 30. Rxb7 {[%emt 0:00:05]} Ra3 {[%emt 0:00:19]} 31. Rd2 {[%emt 0:01:18]} Rc1+ {[%emt 0:04:32]} 32. Kh2 {[%emt 0:00:16]} Rc5 {[%emt 0:00:26]} 33. Rb8 {[%emt 0:01:20]} Re5 {[%emt 0:01:42]} 34. Rc2 {[%emt 0:09:57]} Re7 {[%emt 0:00:05]} 35. Rb7 {[%emt 0:00:34]} Kf8 {[%emt 0:00:15]} 36. Rb8+ {[%emt 0:02:01]} Kf7 {[%emt 0:00:01]} 37. Rc8 {[%emt 0:01:30]} Kf6 {[%emt 0:04:34]} 38. f3 {[%emt 0:01:55]} a5 {[%emt 0:02:38]} 39. Ra8 {[%emt 0:02:21]} Re6 {[%emt 0:00:37]} 40. Rxc7 {[%emt 0:01:39]} Rxa2 {[%emt 0:00:12]} 41. Rf8+ {[%emt 0:00:29]} Ke5 {[%emt 0:00:32]} 42. Rxg7 {[%emt 0:00:17]} a4 {[%emt 0:00:17]} 43. f4+ {[%emt 0:01:32]} Kd4 {[%emt 0:00:56]} 44. f5 {[%emt 0:00:04]} Rd6 {[%emt 0:00:26]} 45. f6 {[%emt 0:00:15]} Rf2 {[%emt 0:00:04]} 46. f7 {[%emt 0:00:14]} Rd7 {[%emt 0:00:03]} 47. Rxh7 {[%emt 0:00:59]} Ra7 {[%emt 0:01:19]} 48. Rd8+ {[%emt 0:00:20]} Kc3 {[%emt 0:00:05]} 49. f8=Q {[%emt 0:00:11]} Rxf8 {[%emt 0:00:03]} 50. Rxa7 {[%emt 0:00:06]} 1-0

[Event "Paracin Open 2022"]
[Site "Paracin"]
[Date "2022.07.16"]
[Round "9.7"]
[White "Han, Yichen"]
[Black "Makhnev, Denis"]
[Result "1/2-1/2"]
[ECO "C47"]
[WhiteElo "2286"]
[BlackElo "2492"]
[Annotator "ChessBase"]
[PlyCount "196"]
[EventDate "2022.07.08"]
[EventCountry "SRB"]
[SourceTitle "playchess.com"]
[Source "ChessBase"]
[SourceQuality "1"]
[TimeControl "5400+30"]

1. e4 {[%emt 0:00:08]} e5 {[%emt 0:00:10]} 2. Nf3 {[%emt 0:00:05]} Nc6 {[%emt 0:00:06]} 3. Nc3 {[%emt 0:01:03]} Nf6 {[%emt 0:00:09]} 4. d4 {[%emt 0:00:12]} exd4 {[%emt 0:00:38]} 5. Nxd4 {[%emt 0:00:07]} Bb4 {[%emt 0:00:45]} 6. Nxc6 {[%emt 0:00:29]} bxc6 {[%emt 0:00:07]} 7. Bd3 {[%emt 0:00:35]} d5 {[%emt 0:00:08]} 8. Bd2 {[%emt 0:00:41]} O-O {[%emt 0:00:29]} 9. O-O {[%emt 0:00:13]} Bxc3 {[%emt 0:05:13]} 10. Bxc3 {[%emt 0:00:33]} Nxe4 {[%emt 0:00:12]} 11. Bxe4 {[%emt 0:00:23]} dxe4 {[%emt 0:00:05]} 12. Qh5 {[%emt 0:00:34]} Qd5 {[%emt 0:12:54]} 13. Qe5 {[%emt 0:00:09]} f6 {[%emt 0:02:34]} 14. Qxc7 {[%emt 0:00:15]} Bg4 {[%emt 0:00:04]} 15. Rfe1 {[%emt 0:06:02]} Bh5 {[%emt 0:02:50]} 16. a4 {[%emt 0:04:56]} c5 {[%emt 0:07:28]} 17. a5 {[%emt 0:07:12]} a6 {[%emt 0:03:39]} 18. Qf4 {[%emt 0:11:52]} Rfe8 {[%emt 0:15:15]} 19. Re3 {[%emt 0:10:33]} Bg6 {[%emt 0:01:13]} 20. Qc7 {[%emt 0:01:38]} Rad8 {[%emt 0:02:19]} 21. Qa7 {[%emt 0:05:17]} Ra8 {[%emt 0:13:07]} 22. Qc7 {[%emt 0:02:29]} Red8 {[%emt 0:00:05]} 23. Re2 {[%emt 0:07:14]} Rd7 {[%emt 0:09:29]} 24. Qb6 {[%emt 0:09:49]} Qc4 {[%emt 0:12:18]} 25. Qb3 {[%emt 0:09:11]} Qxb3 {[%emt 0:00:26]} 26. cxb3 {[%emt 0:00:02]} Rb8 {[%emt 0:00:22]} 27. Rd2 {[%emt 0:01:54]} Rd3 {[%emt 0:00:06]} 28. Rxd3 {[%emt 0:04:24]} exd3 {[%emt 0:00:06]} 29. Kf1 {[%emt 0:00:17]} Bf7 {[%emt 0:01:03]} 30. Re1 {[%emt 0:04:05]} Bxb3 {[%emt 0:04:29]} 31. Re3 {[%emt 0:01:35]} Kf7 {[%emt 0:00:10]} 32. Ke1 {[%emt 0:00:18]} Bc4 {[%emt 0:00:23]} 33. Kd2 {[%emt 0:00:24]} Bb5 {[%emt 0:00:05]} 34. Re1 {[%emt 0:00:42]} Rd8 {[%emt 0:00:11]} 35. g3 {[%emt 0:06:22]} Rd5 {[%emt 0:00:10]} 36. f4 {[%emt 0:00:30]} Bd7 {[%emt 0:01:42]} 37. Re3 {[%emt 0:00:39]} Bf5 {[%emt 0:00:07]} 38. h3 {[%emt 0:02:30]} c4 {[%emt 0:01:32]} 39. g4 {[%emt 0:00:24]} Bd7 {[%emt 0:00:08]} 40. Re4 {[%emt 0:00:35]} f5 {[%emt 0:02:15]} 41. Rxc4 {[%emt 0:01:16]} fxg4 {[%emt 0:00:04]} 42. hxg4 {[%emt 0:00:06]} Bxg4 {[%emt 0:00:03]} 43. Bd4 {[%emt 0:00:30]} Bd7 {[%emt 0:01:19]} 44. Be5 {[%emt 0:01:50]} h5 {[%emt 0:00:45]} 45. Rc3 {[%emt 0:00:18]} g5 {[%emt 0:03:29]} 46. Rxd3 {[%emt 0:01:01]} Rxd3+ {[%emt 0:00:04]} 47. Kxd3 {[%emt 0:00:04]} Bf5+ {[%emt 0:01:15]} 48. Ke3 {[%emt 0:01:33]} g4 {[%emt 0:00:04]} 49. Bc3 {[%emt 0:00:54]} h4 {[%emt 0:00:03]} 50. Be1 {[%emt 0:00:31]} g3 {[%emt 0:00:03]} 51. Bxg3 {[%emt 0:00:51]} hxg3 {[%emt 0:00:03]} 52. Kf3 {[%emt 0:00:05]} Ke6 {[%emt 0:00:04]} 53. Kxg3 {[%emt 0:00:03]} Kd5 {[%emt 0:00:04]} 54. Kf3 {[%emt 0:00:33]} Kc4 {[%emt 0:00:55]} 55. Ke3 {[%emt 0:01:13]} Bg6 {[%emt 0:02:29]} 56. b4 {[%emt 0:00:40]} Kb5 {[%emt 0:01:38]} 57. Kd2 {[%emt 0:00:18]} Kxb4 {[%emt 0:00:05]} 58. Kd1 {[%emt 0:00:25]} Kc3 {[%emt 0:00:06]} 59. Kc1 {[%emt 0:00:05]} Bc2 {[%emt 0:01:07]} 60. f5 {[%emt 0:00:04]} Bxf5 {[%emt 0:00:02]} 61. Kd1 {[%emt 0:00:04]} Kb2 {[%emt 0:00:08]} 62. Ke1 {[%emt 0:01:37]} Kc1 {[%emt 0:00:09]} 63. Ke2 {[%emt 0:00:15]} Kc2 {[%emt 0:00:06]} 64. Ke3 {[%emt 0:00:28]} Bd3 {[%emt 0:00:05]} 65. Kd4 {[%emt 0:00:39]} Kd2 {[%emt 0:00:06]} 66. Ke5 {[%emt 0:00:46]} Kc3 {[%emt 0:01:26]} 67. Kf4 {[%emt 0:00:21]} Kd4 {[%emt 0:01:12]} 68. Kf3 {[%emt 0:00:07]} Bc4 {[%emt 0:00:21]} 69. Kf2 {[%emt 0:00:32]} Kd3 {[%emt 0:00:12]} 70. Ke1 {[%emt 0:00:44]} Bb3 {[%emt 0:00:04]} 71. Kf2 {[%emt 0:00:09]} Bd1 {[%emt 0:00:22]} 72. Ke1 {[%emt 0:00:52]} Be2 {[%emt 0:00:31]} 73. Kf2 {[%emt 0:00:01]} Kd2 {[%emt 0:01:41]} 74. Kg3 {[%emt 0:00:28]} Ke3 {[%emt 0:00:07]} 75. Kg2 {[%emt 0:00:15]} Bd3 {[%emt 0:00:17]} 76. Kg1 {[%emt 0:00:35]} Kf3 {[%emt 0:00:27]} 77. Kh2 {[%emt 0:00:20]} Kf2 {[%emt 0:01:22]} 78. Kh1 {[%emt 0:00:20]} Be4+ {[%emt 0:00:04]} 79. Kh2 {[%emt 0:00:01]} Bf3 {[%emt 0:00:06]} 80. Kh3 {[%emt 0:00:04]} Kg1 {[%emt 0:00:03]} 81. Kg3 {[%emt 0:00:27]} Bg2 {[%emt 0:00:04]} 82. Kf4 {[%emt 0:00:27]} Kf2 {[%emt 0:00:06]} 83. Kg4 {[%emt 0:00:03]} Bc6 {[%emt 0:00:25]} 84. Kh3 {[%emt 0:02:33]} Ke3 {[%emt 0:00:13]} 85. Kg3 {[%emt 0:00:22]} Bf3 {[%emt 0:01:36]} 86. Kh3 {[%emt 0:00:34]} Kd2 {[%emt 0:01:40]} 87. Kg3 {[%emt 0:00:10]} Bd1 {[%emt 0:00:08]} 88. Kf2 {[%emt 0:00:26]} Bh5 {[%emt 0:00:06]} 89. Kf1 {[%emt 0:00:19]} Kc3 {[%emt 0:00:29]} 90. Ke1 {[%emt 0:01:24]} Bg4 {[%emt 0:00:08]} 91. Kf2 {[%emt 0:00:06]} Kb4 {[%emt 0:00:31]} 92. Ke3 {[%emt 0:00:33]} Kxa5 {[%emt 0:00:06]} 93. Kd2 {[%emt 0:00:14]} Kb4 {[%emt 0:00:04]} 94. Kc2 {[%emt 0:00:22]} a5 {[%emt 0:00:04]} 95. Kb2 {[%emt 0:00:04]} a4 {[%emt 0:00:02]} 96. Ka1 {[%emt 0:00:06]} Kb3 {[%emt 0:00:06]} 97. Kb1 {[%emt 0:00:04]} a3 {[%emt 0:00:06]} 98. Ka1 {[%emt 0:00:01]} a2 {[%emt 0:06:33]} 1/2-1/2

[Event "Paracin Open 2022"]
[Site "Paracin"]
[Date "2022.07.16"]
[Round "9.8"]
[White "Koustav Chatterjee"]
[Black "Anuj Shrivatri"]
[Result "1/2-1/2"]
[ECO "E46"]
[WhiteElo "2485"]
[BlackElo "2383"]
[Annotator "ChessBase"]
[PlyCount "90"]
[EventDate "2022.07.08"]
[EventCountry "SRB"]
[SourceTitle "playchess.com"]
[Source "ChessBase"]
[SourceQuality "1"]
[TimeControl "5400+30"]

1. d4 {[%emt 0:03:12]} Nf6 {[%emt 0:03:27]} 2. c4 {[%emt 0:00:30]} e6 {[%emt 0:00:07]} 3. Nc3 {[%emt 0:09:47]} Bb4 {[%emt 0:00:31]} 4. e3 {[%emt 0:00:05]} O-O {[%emt 0:00:06]} 5. Nge2 {[%emt 0:00:03]} c6 {[%emt 0:00:12]} 6. a3 {[%emt 0:02:14]} Ba5 {[%emt 0:00:09]} 7. c5 {[%emt 0:01:39]} d6 {[%emt 0:03:52]} 8. b4 {[%emt 0:12:16]} Bc7 {[%emt 0:00:18]} 9. g3 {[%emt 0:00:05]} e5 {[%emt 0:12:01]} 10. Bg2 {[%emt 0:08:57]} d5 {[%emt 0:07:04]} 11. dxe5 {[%emt 0:02:34]} Bxe5 {[%emt 0:00:14]} 12. O-O {[%emt 0:04:45]} Re8 {[%emt 1:08:29]} 13. Bb2 {[%emt 0:13:28]} Nbd7 {[%emt 0:00:00]} 14. Qc2 {[%emt 0:03:14]} Nf8 {[%emt 0:00:00]} 15. Rad1 {[%emt 0:01:24]} Qc7 {[%emt 0:00:00]} 16. h3 {[%emt 0:12:18]} h5 {[%emt 0:00:00]} 17. Rfe1 {[%emt 0:02:08]} Bd7 {[%emt 0:00:00]} 18. f4 {[%emt 0:04:14]} Bxc3 {[%emt 0:00:00]} 19. Nxc3 {[%emt 0:00:26]} Qc8 {[%emt 0:00:00]} 20. Kh2 {[%emt 0:04:37]} Bf5 {[%emt 0:00:00]} 21. e4 {[%emt 0:00:08]} dxe4 {[%emt 0:00:00]} 22. Nxe4 {[%emt 0:00:39]} Nxe4 {[%emt 0:00:00]} 23. Bxe4 {[%emt 0:00:03]} Bxe4 {[%emt 0:00:00]} 24. Rxe4 {[%emt 0:00:05]} Qf5 {[%emt 0:00:00]} 25. Qc3 {[%emt 0:07:18]} f6 {[%emt 0:00:00]} 26. Qc4+ {[%emt 0:00:20]} Kh7 {[%emt 0:00:00]} 27. Rde1 {[%emt 0:00:04]} Rxe4 {[%emt 0:00:00]} 28. Rxe4 {[%emt 0:00:09]} Rd8 {[%emt 0:00:00]} 29. Bc3 {[%emt 0:00:03]} Rd1 {[%emt 0:00:00]} 30. Qe2 {[%emt 0:03:34]} Qd5 {[%emt 0:00:00]} 31. f5 {[%emt 0:00:11]} Qxf5 {[%emt 0:03:57]} 32. Qxd1 {[%emt 0:05:05]} Qxe4 {[%emt 0:00:06]} 33. Qxh5+ {[%emt 0:00:02]} Kg8 {[%emt 0:00:10]} 34. Qd1 {[%emt 0:00:04]} Qe3 {[%emt 0:03:59]} 35. Qc2 {[%emt 0:01:23]} Ne6 {[%emt 0:00:21]} 36. h4 {[%emt 0:00:20]} Nc7 {[%emt 0:00:26]} 37. Bb2 {[%emt 0:00:44]} Nd5 {[%emt 0:01:15]} 38. Bc1 {[%emt 0:00:46]} Qf3 {[%emt 0:00:47]} 39. Qg2 {[%emt 0:00:18]} Qg4 {[%emt 0:01:43]} 40. Bd2 {[%emt 0:00:41]} Kh7 {[%emt 0:00:44]} 41. Qf1 {[%emt 0:00:23]} Qe4 {[%emt 0:00:27]} 42. Qg2 {[%emt 0:00:18]} Qd3 {[%emt 0:00:19]} 43. g4 {[%emt 0:00:20]} f5 {[%emt 0:00:40]} 44. gxf5 {[%emt 0:00:43]} Qxf5 {[%emt 0:00:05]} 45. Qe2 {[%emt 0:00:26]} Nf6 {[%emt 0:00:53]} 1/2-1/2

[Event "Paracin Open 2022"]
[Site "Paracin"]
[Date "2022.07.16"]
[Round "9.9"]
[White "Nitish Belurkar"]
[Black "Ohanyan, Emin"]
[Result "0-1"]
[ECO "B48"]
[WhiteElo "2460"]
[BlackElo "2354"]
[Annotator "ChessBase"]
[PlyCount "150"]
[EventDate "2022.07.08"]
[EventCountry "SRB"]
[SourceTitle "playchess.com"]
[Source "ChessBase"]
[SourceQuality "1"]
[TimeControl "5400+30"]

1. e4 {[%emt 0:00:04]} c5 {[%emt 0:01:37]} 2. Nf3 {[%emt 0:00:25]} e6 {[%emt 0:00:10]} 3. d4 {[%emt 0:00:04]} cxd4 {[%emt 0:00:03]} 4. Nxd4 {[%emt 0:00:04]} Nc6 {[%emt 0:00:09]} 5. Nc3 {[%emt 0:00:02]} Qc7 {[%emt 0:00:06]} 6. Be3 {[%emt 0:00:08]} a6 {[%emt 0:00:23]} 7. Qf3 {[%emt 0:00:08]} Nf6 {[%emt 0:01:18]} 8. O-O-O {[%emt 0:00:13]} Ne5 {[%emt 0:03:12]} 9. Qg3 {[%emt 0:00:09]} b5 {[%emt 0:02:02]} 10. f4 {[%emt 0:00:16]} Neg4 {[%emt 0:01:22]} 11. Bg1 {[%emt 0:00:10]} b4 {[%emt 0:06:43]} 12. Na4 {[%emt 0:07:47]} h5 {[%emt 0:00:31]} 13. e5 {[%emt 0:00:15]} Nd5 {[%emt 0:00:41]} 14. h3 {[%emt 0:00:25]} Nh6 {[%emt 0:00:08]} 15. Kb1 {[%emt 0:00:12]} g6 {[%emt 0:06:21]} 16. Bd3 {[%emt 0:00:50]} Bb7 {[%emt 0:14:05]} 17. Be4 {[%emt 0:07:04]} Rb8 {[%emt 0:07:31]} 18. Qf3 {[%emt 0:05:44]} Nf5 {[%emt 0:06:26]} 19. Nxf5 {[%emt 0:09:33]} gxf5 {[%emt 0:01:26]} 20. Bxd5 {[%emt 0:00:10]} Bxd5 {[%emt 0:00:07]} 21. Rxd5 {[%emt 0:00:26]} exd5 {[%emt 0:00:06]} 22. Bd4 {[%emt 0:04:53]} Rh6 {[%emt 0:02:26]} 23. Rd1 {[%emt 0:03:17]} Rc8 {[%emt 0:13:33]} 24. Rd2 {[%emt 0:03:35]} Rc6 {[%emt 0:11:19]} 25. Qd3 {[%emt 0:05:35]} Qa5 {[%emt 0:05:21]} 26. b3 {[%emt 0:00:34]} Qb5 {[%emt 0:00:43]} 27. Qf3 {[%emt 0:17:35]} h4 {[%emt 0:01:44]} 28. Kb2 {[%emt 0:01:26]} Rg6 {[%emt 0:03:58]} 29. Rf2 {[%emt 0:04:38]} Rg3 {[%emt 0:03:16]} 30. Qh5 {[%emt 0:02:50]} Rc6 {[%emt 0:00:48]} 31. Qxf5 {[%emt 0:17:13]} Rcg6 {[%emt 0:00:38]} 32. Qh5 {[%emt 0:00:18]} Rxg2 {[%emt 0:00:33]} 33. f5 {[%emt 0:00:35]} R6g5 {[%emt 0:03:08]} 34. Qxh4 {[%emt 0:00:25]} Qc6 {[%emt 0:01:15]} 35. Qf4 {[%emt 0:02:22]} Rxf2 {[%emt 0:02:25]} 36. Qxf2 {[%emt 0:00:38]} Rh5 {[%emt 0:01:47]} 37. Qg3 {[%emt 0:01:19]} Rxf5 {[%emt 0:00:35]} 38. e6 {[%emt 0:01:15]} fxe6 {[%emt 0:00:22]} 39. Qg6+ {[%emt 0:00:11]} Rf7 {[%emt 0:00:31]} 40. Qh5 {[%emt 0:02:35]} d6 {[%emt 0:00:26]} 41. Qh4 {[%emt 0:01:29]} e5 {[%emt 0:01:04]} 42. Bb6 {[%emt 0:00:01]} Rf4 {[%emt 0:00:37]} 43. Qd8+ {[%emt 0:00:18]} Kf7 {[%emt 0:00:02]} 44. Be3 {[%emt 0:00:01]} Rf6 {[%emt 0:00:35]} 45. Bd2 {[%emt 0:00:44]} d4 {[%emt 0:00:32]} 46. Bxb4 {[%emt 0:02:29]} Rf2 {[%emt 0:00:36]} 47. Ka3 {[%emt 0:00:01]} a5 {[%emt 0:00:46]} 48. Qxa5 {[%emt 0:00:34]} Qxc2 {[%emt 0:00:11]} 49. Qd5+ {[%emt 0:00:58]} Kg7 {[%emt 0:00:07]} 50. Bxd6 {[%emt 0:00:11]} Qxa2+ {[%emt 0:00:02]} 51. Kb4 {[%emt 0:00:01]} Qd2+ {[%emt 0:00:30]} 52. Kb5 {[%emt 0:00:12]} Qd3+ {[%emt 0:00:32]} 53. Ka5 {[%emt 0:00:01]} Bxd6 {[%emt 0:00:33]} 54. Qxd6 {[%emt 0:00:01]} Qf5 {[%emt 0:01:24]} 55. Nc5 {[%emt 0:00:21]} Kf7 {[%emt 0:00:39]} 56. Nd7 {[%emt 0:01:32]} e4+ {[%emt 0:00:33]} 57. Kb4 {[%emt 0:00:07]} d3 {[%emt 0:00:29]} 58. Ne5+ {[%emt 0:01:34]} Kg7 {[%emt 0:00:17]} 59. Qc7+ {[%emt 0:01:27]} Kg8 {[%emt 0:00:35]} 60. Ng4 {[%emt 0:00:58]} Qf8+ {[%emt 0:00:02]} 61. Kb5 {[%emt 0:00:00]} Rf5+ {[%emt 0:00:23]} 62. Ka4 {[%emt 0:00:08]} Qe8+ {[%emt 0:00:19]} 63. Ka3 {[%emt 0:00:05]} Qe6 {[%emt 0:00:46]} 64. Qd8+ {[%emt 0:00:45]} Kg7 {[%emt 0:00:35]} 65. Qd4+ {[%emt 0:00:07]} Kh7 {[%emt 0:00:20]} 66. Kb2 {[%emt 0:00:20]} Qe7 {[%emt 0:00:44]} 67. Qe3 {[%emt 0:00:51]} Qg7+ {[%emt 0:00:18]} 68. Ka3 {[%emt 0:00:01]} Qa1+ {[%emt 0:00:33]} 69. Kb4 {[%emt 0:00:01]} Qa5+ {[%emt 0:00:07]} 70. Kc4 {[%emt 0:00:05]} Qb5+ {[%emt 0:00:27]} 71. Kc3 {[%emt 0:00:07]} Qc5+ {[%emt 0:00:27]} 72. Kd2 {[%emt 0:00:01]} Qc2+ {[%emt 0:00:09]} 73. Ke1 {[%emt 0:00:01]} Qc3+ {[%emt 0:00:10]} 74. Kd1 {[%emt 0:00:01]} Rf1+ {[%emt 0:00:06]} 75. Qe1 {[%emt 0:00:04]} Rxe1# {[%emt 0:00:02]} 0-1

[Event "Paracin Open 2022"]
[Site "Paracin"]
[Date "2022.07.16"]
[Round "9.10"]
[White "Tsaknakis, Zisis"]
[Black "Harshavardhan G B"]
[Result "0-1"]
[ECO "C76"]
[WhiteElo "2266"]
[BlackElo "2397"]
[Annotator "ChessBase"]
[PlyCount "84"]
[EventDate "2022.07.08"]
[EventCountry "SRB"]
[SourceTitle "playchess.com"]
[Source "ChessBase"]
[SourceQuality "1"]
[TimeControl "5400+30"]

1. e4 {[%emt 0:05:53]} e5 {[%emt 0:00:59]} 2. Nf3 {[%emt 0:00:04]} Nc6 {[%emt 0:00:51]} 3. Bb5 {[%emt 0:00:03]} a6 {[%emt 0:00:08]} 4. Ba4 {[%emt 0:00:01]} d6 {[%emt 0:00:08]} 5. O-O {[%emt 0:00:03]} Bd7 {[%emt 0:00:07]} 6. c3 {[%emt 0:00:41]} g6 {[%emt 0:00:09]} 7. d4 {[%emt 0:00:10]} Bg7 {[%emt 0:00:10]} 8. Be3 {[%emt 0:00:09]} Nge7 {[%emt 0:00:09]} 9. dxe5 {[%emt 0:07:19]} dxe5 {[%emt 0:01:28]} 10. Bc5 {[%emt 0:00:26]} b6 {[%emt 0:01:39]} 11. Ba3 {[%emt 0:00:52]} b5 {[%emt 0:00:14]} 12. Bc2 {[%emt 0:01:23]} O-O {[%emt 0:00:19]} 13. Nbd2 {[%emt 0:02:24]} Na5 {[%emt 0:04:27]} 14. Qe2 {[%emt 0:07:51]} Re8 {[%emt 0:00:24]} 15. Ne1 {[%emt 0:11:13]} Nc8 {[%emt 0:04:01]} 16. Nd3 {[%emt 0:01:49]} Nd6 {[%emt 0:02:23]} 17. Nc5 {[%emt 0:01:34]} Bc6 {[%emt 0:00:30]} 18. Bb4 {[%emt 0:12:32]} Nab7 {[%emt 0:02:55]} 19. a4 {[%emt 0:01:07]} Nxc5 {[%emt 0:07:24]} 20. Bxc5 {[%emt 0:00:18]} Nb7 {[%emt 0:00:24]} 21. Be3 {[%emt 0:01:02]} Bf8 {[%emt 0:06:41]} 22. b4 {[%emt 0:04:51]} Nd6 {[%emt 0:05:00]} 23. axb5 {[%emt 0:09:23]} axb5 {[%emt 0:05:32]} 24. Bc5 {[%emt 0:05:52]} Bd7 {[%emt 0:04:20]} 25. Nb3 {[%emt 0:06:59]} Qf6 {[%emt 0:00:54]} 26. Bd3 {[%emt 0:01:06]} c6 {[%emt 0:00:55]} 27. Rad1 {[%emt 0:07:30]} Rec8 {[%emt 0:11:40]} 28. Na5 {[%emt 0:01:25]} Be8 {[%emt 0:02:32]} 29. f4 {[%emt 0:03:27]} Nxe4 {[%emt 0:04:28]} 30. Bxf8 {[%emt 0:04:30]} Nxc3 {[%emt 0:00:08]} 31. Qd2 {[%emt 0:02:38]} Nxd1 {[%emt 0:00:15]} 32. fxe5 {[%emt 0:00:44]} Qxe5 {[%emt 0:00:18]} 33. Bh6 {[%emt 0:00:59]} Qd4+ {[%emt 0:00:54]} 34. Kh1 {[%emt 0:00:03]} Nb2 {[%emt 0:00:16]} 35. Nb3 {[%emt 0:01:03]} Qxd3 {[%emt 0:00:18]} 36. Qf2 {[%emt 0:00:32]} Rd8 {[%emt 0:00:49]} 37. Rg1 {[%emt 0:00:32]} Qc3 {[%emt 0:00:35]} 38. Nc5 {[%emt 0:00:25]} Nd1 {[%emt 0:01:07]} 39. Qe2 {[%emt 0:00:32]} Qxb4 {[%emt 0:00:51]} 40. Nb7 {[%emt 0:00:30]} Qe7 {[%emt 0:00:49]} 41. Qf3 {[%emt 0:00:33]} Rd3 {[%emt 0:00:19]} 42. Qf4 {[%emt 0:00:29]} Ra4 {[%emt 0:00:19]} 0-1